Cogmind - Beta 13 @@@ ROGUE MODE // 2024.04.26 @ 20:32:37 Player: Gabe+Kate4EVR Result: Destroyed by Y-54 Guardian with Flak Gun Performance ------------- Evolutions (3) 1500 Regions Visited (4) 800 Robots Destroyed (51) 255 Value Destroyed (1464) 1464 Prototype IDs (3) 60 Alien Tech Used (0) 0 Bonus (0) 0 TOTAL SCORE: 4079 Bonus ------- None Cogmind --------- Core Integrity 0/700 Matter 300/300 Energy 56/100 System Corruption 11% Temperature Warning (326) Movement Core (300) Ox5 Location -7/Factory Parts ------- > --- POWER (1) -------- (None) > --- PROPULSION (6) --- (None) > --- UTILITY (2) ------ Medium Storage Unit > --- WEAPON (4) ------- Autogun Remote Datajack Flail > --- INVENTORY (10) --- Cesium-ion Thruster Cooled VTOL Module Improved Utility Shielding Improved Light Armor Plating Plasma Cutter Peak State ------------ > --- POWER ------------ Light Nuclear Core > --- PROPULSION ------- Wheel Wheel Wheel Wheel Wheel Wheel > --- UTILITY ---------- Medium Storage Unit Layered Light Armor Plating > --- WEAPON ----------- Lightning Gun Lightning Gun Heavy Assault Cannon > --- INVENTORY -------- Light Nuclear Core Cesium-ion Thruster Cooled VTOL Module Improved Utility Shielding Improved Light Armor Plating Improved Medium Laser Precision Assault Rifle Plasma Cutter Flail Flail [Rating: 31] Favorites ----------- Power Light Nuclear Core Engine Light Ion Engine Power Core Light Nuclear Core Propulsion Aluminum Leg Treads Light Treads Leg Aluminum Leg Wheel Wheel Hover Unit Backup Propulsion I Utility Medium Storage Unit Device Cooling System Storage Medium Storage Unit Protection Improved Utility Shielding Weapon Flail Energy Gun Lightning Gun Ballistic Gun Assault Rifle Ballistic Cannon Heavy Assault Cannon Special Weapon Remote Datajack Impact Weapon Flail Build | -11 -10 -9 -8 -7 ------- Run | Yrd Mat Mat Mat Fac Slots Evolved 6 | . . 2 2 2 Power . | . . . . . Propulsion 4 | . . 2 2 . Utility . | . . . . . Weapon 2 | . . . . 2 Parts Attached 76 | 6 4 10 32 24 Power 5 | 1 . 1 1 2 Engine 1 | 1 . . . . Core 4 | . . 1 1 2 Reactor . | . . . . . Propulsion 26 | 2 2 2 15 5 Treads 3 | 2 . . . 1 Leg 13 | . 2 2 9 . Wheel 9 | . . . 5 4 Hover 1 | . . . 1 . Flight . | . . . . . Utility 13 | 1 2 1 6 3 Device 5 | . 1 1 3 . Storage 3 | 1 1 . 1 . Processor . | . . . . . Hackware . | . . . . . Protection 5 | . . . 2 3 Artifact . | . . . . . Weapon 32 | 2 . 6 10 14 Energy Gun 13 | 1 . 3 4 5 Energy Cannon . | . . . . . Ballistic Gun 8 | 1 . 3 1 3 Ballistic Cannon 3 | . . . 1 2 Launcher . | . . . . . Special Weapon 2 | . . . . 2 Impact Weapon 6 | . . . 4 2 Slashing Weapon . | . . . . . Piercing Weapon . | . . . . . Special Melee Weapon . | . . . . . Unidentified Prototypes 1 | . . . . 1 Corrupted Parts 2 | . . 1 . 1 System Corruption 11 | . . 2 . 9 Parts Lost 30 | . . . 9 21 Power 3 | . . . . 3 Propulsion 16 | . . . 7 9 Utility 3 | . . . 1 2 Weapon 8 | . . . 1 7 Highest Loss Streak 14 | . . . 5 14 To Critical Strikes . | . . . . . Average Slot Usage (%) 84 | . 95 100 87 69 Engine 2 | . 14 6 . . Core 5 | . . 4 9 4 Treads 1 | . 9 . . 1 Leg 21 | . 18 44 32 . Wheel 13 | . . . 12 26 Hover 1 | . . . 1 1 Device 3 | . 4 11 3 . Storage 9 | . 19 11 9 7 Protection 3 | . . . 4 4 Energy Gun 8 | . 14 14 4 9 Ballistic Gun 3 | . 14 7 1 . Ballistic Cannon 2 | . . . 2 3 Impact Weapon 4 | . . . 6 4 Naked Turns . | . . . . . Heaviest Build 39 | 12 22 23 29 39 Greatest Support 65 | 40 40 40 65 60 Greatest Overweight (x) 6 | . 2 . 3 6 Average Overweight (x) . | . . . . . Largest Inventory Capacity 10 | 8 10 10 10 10 Average Capacity 9 | 6 9 10 10 10 Most Carried 10 | 2 9 10 10 10 Average Carried 8 | 1 5 9 9 7 Final Capacity 10 | 8 10 10 10 10 Final Carried 10 | 2 9 10 10 5 Class Distribution -------------------- 47% | Mutant 35% | Scavenger-Mutant 16% | Scavenger-Tank Dominant Class ---------------- Mutant | -10/Materials Mutant | -9/Materials Scavenger-Mutant | -8/Materials Scavenger-Tank | -7/Factory Resources | -11 -10 -9 -8 -7 ----------- Run | Yrd Mat Mat Mat Fac Matter Collected 1440 | 207 45 158 693 337 Remotely . | . . . . . Salvage Created 1926 | . 137 358 884 547 Parts 111 | . 8 23 49 31 Haulers Intercepted 2 | . . . 2 . Recyclers Shooed 1 | . . . 1 . Parts Field Recycled . | . . . . . Retrieved Matter . | . . . . . Parts Self-Destructed . | . . . . . Prevented . | . . . . . Kills | -11 -10 -9 -8 -7 ------- Run | Yrd Mat Mat Mat Fac Combat Hostiles Destroyed 32 | . 3 7 14 8 Melee 4 | . . . 1 3 Guns 15 | . 3 7 3 2 Cannons 7 | . . . 6 1 Classes Destroyed 12 | . 1 1 7 3 Worker 7 | . . . 7 . Builder 5 | . . . 3 2 Tunneler 1 | . . . . 1 Hauler 2 | . . . 2 . Recycler 3 | . . . 2 1 Watcher 1 | . . . . 1 Swarmer 5 | . . . 3 2 Grunt 14 | . 3 3 8 . Sentry 10 | . . 4 1 5 Hunter 1 | . . . 1 . Programmer 1 | . . . . 1 Heavy 1 | . . . 1 . Best Kill Streak 7 | . 3 3 7 3 Combat Bots Only 4 | . 3 3 4 2 Max Kills in Single Turn 2 | . 2 1 1 2 Gunslinging 1 | . 1 . . . Exploded . | . . . . . Melee 1 | . . . 1 1 Uniques/NPCs Destroyed . | . . . . . Combat | -11 -10 -9 -8 -7 -------- Run | Yrd Mat Mat Mat Fac Hostile Shots Fired 597 | . 8 30 119 440 Missed 169 | . 2 16 28 123 Damage Taken 4569 | . 64 203 1716 2586 Core 1131 | . 31 10 386 704 Absorbed by Shields . | . . . . . Core Remaining (%) 78 | 100 87 97 29 . Volleys Fired 115 | . 5 21 62 27 Largest 3 | . 2 2 2 3 Hottest 170 | . 60 95 100 170 Shots Fired 184 | . 10 40 78 56 Gun 126 | . 10 40 34 42 Cannon 57 | . . . 44 13 Launcher . | . . . . . Special 1 | . . . . 1 Kinetic 82 | . 5 5 49 23 Thermal 24 | . . 14 . 10 Explosive . | . . . . . Electromagnetic 77 | . 5 21 29 22 Robot Hit Streak 12 | . 6 11 11 12 Robot Miss Streak 5 | . 2 3 3 5 Penetration Max 1 | . . . 1 1 Secondary Targets 5 | . 1 2 1 1 Max Gunslinging Chain 1 | . 1 1 1 1 Shots Hit Robots 161 | . 6 32 64 59 Core Hits 62 | . 5 13 26 18 Critical Kills 1 | . . . 1 . Critical Parts Destroyed 5 | . . . 3 2 Critical Strikes 11 | . . . 7 4 Blast 4 | . . . 3 1 Corrupt 1 | . . . . 1 Smash 6 | . . . 4 2 Melee Attacks 47 | . . . 19 28 Impact 47 | . . . 19 28 Slashing . | . . . . . Piercing . | . . . . . Sneak Attacks 3 | . . . 2 1 Combat Hostiles . | . . . . . Follow-up Attacks 7 | . . . 4 3 Damage Inflicted 4957 | . 78 421 2736 1722 Guns 1594 | . 78 421 477 618 Cannons 2120 | . . . 1678 442 Explosions 137 | . . . 137 . Melee 1102 | . . . 444 658 Ramming 4 | . . . . 4 Kinetic 2477 | . 39 56 1757 625 Thermal 377 | . . 138 38 201 Explosive 99 | . . . 99 . Electromagnetic 898 | . 39 227 398 234 Impact 1102 | . . . 444 658 Slashing . | . . . . . Piercing . | . . . . . Highest Corruption 11 | . . 2 . 11 Average Corruption 2 | . . 2 . 2 Corruption Purged . | . . . . . Corruption Blocked . | . . . . . Effects 11 | . . 2 . 9 Message Errors 2 | . . 1 . 1 Matter Fused 5 | . . 1 . 4 Heat Flow Errors 1 | . . . . 1 Energy Discharges 1 | . . . . 1 Parts Rejected 1 | . . . . 1 Weapon Failures 1 | . . . . 1 Overload Shots . | . . . . . Overflow Damage 602 | . . . 381 221 Projectiles 198 | . . . 154 44 Explosions 58 | . . . 58 . Melee 346 | . . . 169 177 Knockbacks 12 | . . . 11 1 Impact 2 | . . . 2 . Kinetic 10 | . . . 9 1 Secondary . | . . . . . Self-Inflicted Damage 136 | . . . 136 . Shots 2 | . . . 2 . Rammed 2 | . . . . 2 Targets Rammed 2 | . . . . 2 Kicked . | . . . . . Crushed . | . . . . . Highest Temperature 408 | . 36 6 176 408 Average Temperature 121 | . 20 6 51 212 Received Heat Transfer 1332 | . 36 114 486 696 Effects 9 | . . . . 9 Shutdowns 2 | . . . . 2 Energy Bleed 2 | . . . . 2 Interference 5 | . . . . 5 Siege Activations . | . . . . . Robots Corrupted 3 | . . . 2 1 Combat Hostiles 3 | . . . 2 1 Parts Fried 11 | . . . 6 5 Impact Corruptions 11 | . . . 6 5 Robots Melted . | . . . . . Combat Hostiles . | . . . . . Parts Melted 1 | . . 1 . . Heat Transferred 905 | . . 407 50 448 Parts Sabotaged . | . . . . . Parts Stolen . | . . . . . Parts Stripped . | . . . . . Power Chain Reactions 1 | . . . 1 . Alert | -11 -10 -9 -8 -7 ------- Run | Yrd Mat Mat Mat Fac Peak Influence 366 | . 136 225 366 274 Initial 98 | . . 5 94 98 Average 132 | . 48 133 189 109 Maximum Alert Level 1 | . . 1 1 1 Low Security (%) 71 | 100 100 63 47 90 Level 1 28 | . . 36 52 9 Level 2 . | . . . . . Level 3 . | . . . . . Level 4 . | . . . . . Level 5 . | . . . . . High Security . | . . . . . Max Security . | . . . . . Squads Dispatched 8 | . 1 . 2 5 Investigation 1 | . 1 . . . Extermination 1 | . . . . 1 Reinforcement 2 | . . . 2 . Assault . | . . . . . Garrison 4 | . . . . 4 Intercept . | . . . . . Searches Triggered . | . . . . . Construction Impeded . | . . . . . Haulers Reinforced . | . . . . . Active Scanning Responses . | . . . . . Cargo Convoy Interrupts . | . . . . . Stealth | -11 -10 -9 -8 -7 --------- Run | Yrd Mat Mat Mat Fac Distress Signals 3 | . . 2 1 . Communications Jammed . | . . . . . Distress Signals . | . . . . . Times Spotted 49 | . 5 9 24 11 Peak Tracking Total 7 | . 3 7 6 4 Tactical Retreats 3 | . 1 1 1 . Traps | -11 -10 -9 -8 -7 ------- Run | Yrd Mat Mat Mat Fac Traps Triggered 1 | . 1 . . . Indirectly . | . . . . . Trap Hack Attempts . | . . . . . Triggered . | . . . . . Disarmed . | . . . . . Reprogrammed . | . . . . . Reused . | . . . . . Traps Extracted . | . . . . . Installed . | . . . . . Triggered . | . . . . . Machines | -11 -10 -9 -8 -7 ---------- Run | Yrd Mat Mat Mat Fac Machines Disabled 3 | . . . 3 . Max in Single Turn 2 | . . . 2 . Machines Repaired . | . . . . . Machines Dismantled . | . . . . . Machines Sabotaged . | . . . . . Overloaded Fab Kills . | . . . . . Hacking | -11 -10 -9 -8 -7 --------- Run | Yrd Mat Mat Mat Fac Machines Accessed 5 | . 2 . . 3 Terminals 5 | . 2 . . 3 Fabricators . | . . . . . Repair Stations . | . . . . . Recycling Units . | . . . . . Scanalyzers . | . . . . . Garrison Access . | . . . . . Total Hacks 12 | . 5 . . 7 Successful 5 | . 2 . . 3 Failed 7 | . 3 . . 4 Catastrophic 2 | . . . . 2 Database Lockouts . | . . . . . Manual 11 | . 5 . . 6 Terminals 12 | . 5 . . 7 Fabricators . | . . . . . Repair Stations . | . . . . . Recycling Units . | . . . . . Scanalyzers . | . . . . . Garrison Access . | . . . . . Terminal Hacks 4 | . 2 . . 2 Record 1 | . . . . 1 Prototype ID Bank 1 | . 1 . . . Alert Level 1 | . . . . 1 Unreport Threat 1 | . 1 . . . Fabricator Hacks . | . . . . . Repair Station Hacks . | . . . . . Recycling Unit Hacks . | . . . . . Scanalyzer . | . . . . . Garrison Access Hacks . | . . . . . Unauthorized Hacks 1 | . . . . 1 Terminals 1 | . . . . 1 Assimilate 1 | . . . . 1 Fabricators . | . . . . . Repair Stations . | . . . . . Recycling Units . | . . . . . Scanalyzers . | . . . . . Garrison Access . | . . . . . Data Cores Recovered . | . . . . . Used . | . . . . . Hacking Detections 5 | . 2 . . 3 Full Trace Events . | . . . . . Feedback Events . | . . . . . Feedback Blocked . | . . . . . Robot Schematics Acquired . | . . . . . Robots Built . | . . . . . Authchips . | . . . . . Time . | . . . . . Total Robot Build Rating . | . . . . . Part Schematics Acquired . | . . . . . Parts Built . | . . . . . Authchips . | . . . . . Time . | . . . . . Total Part Build Rating . | . . . . . Parts Repaired . | . . . . . Time . | . . . . . Parts Recycled . | . . . . . Recycled Matter . | . . . . . Retrieved Matter . | . . . . . Retrieved Components . | . . . . . Parts Scanalyzed . | . . . . . Part Schematics Acquired . | . . . . . Parts Damaged . | . . . . . Bothacking | -11 -10 -9 -8 -7 ------------ Run | Yrd Mat Mat Mat Fac Used RIF Installer . | . . . . . Robots Hacked 1 | . . . . 1 Non-combat . | . . . . . Combat 1 | . . . . 1 Robot Hacks Applied 1 | . . . . 1 parse_system 1 | . . . . 1 Relay Couplers Released . | . . . . . Fabnet Peak Effective % . | . . . . . Robots Rewired . | . . . . . Allies Hacked . | . . . . . Hacks Repelled . | . . . . . Allies | -11 -10 -9 -8 -7 -------- Run | Yrd Mat Mat Mat Fac Total Allies 1 | . . . . 1 Largest Group 1 | . . . . 1 Highest-Rated Group 26 | . . . . 26 Highest-Rated Ally 26 | . . . . 26 Total Orders . | . . . . . Ally Attacks . | . . . . . Total Damage . | . . . . . Kills . | . . . . . Allies Corrupted . | . . . . . Allies Melted . | . . . . . Intel | -11 -10 -9 -8 -7 ------- Run | Yrd Mat Mat Mat Fac Robot Analysis Total . | . . . . . Derelict Logs Recovered . | . . . . . Drone Launches . | . . . . . Drone Recoveries . | . . . . . Exploration | -11 -10 -9 -8 -7 ------------- Run | Yrd Mat Mat Mat Fac Turns Passed 2267 | 110 259 304 901 693 Spaces Moved 1118 | 63 133 177 443 302 Core 28 | 4 . . . 24 Treads 167 | 59 56 . . 52 Legs 598 | . 77 177 344 . Wheels 259 | . . . 53 206 Hover 66 | . . . 46 20 Flight . | . . . . . Fastest Speed 50 | 50 120 120 80 80 Average Speed 142 | 153 145 120 141 151 Slowest Speed 585 | 160 260 120 345 585 Overloaded Moves . | . . . . . Propulsion Burnouts . | . . . . . Robots Hopped . | . . . . . Cave-ins Triggered . | . . . . . Exploration Rate (%) 15 | 5 23 15 30 5 Regions Visited 4 Branch Regions . Pre-discovered Areas . | . . . . . Known Exits Taken . | . . . . . Unknown Exits Taken 4 | 1 1 1 1 . Scrap Searched . | . . . . . Spaces Dug . | . . . . . Terrain Destroyed 47 | . . . 40 7 Melee . | . . . . . Projectile 23 | . . . 16 7 AOE 24 | . . . 24 . Terrain Rammed . | . . . . . Walls Destroyed . | . . . . . Machines Disabled . | . . . . . Actions | -11 -10 -9 -8 -7 --------- Run | Yrd Mat Mat Mat Fac Total 1543 | 74 188 231 608 442 Wait 103 | 4 36 8 17 38 Move 1114 | 62 132 176 442 302 Hop . | . . . . . Pick Up 39 | 2 6 6 14 11 Fast Attach 38 | 6 4 3 13 12 Attach 16 | . . 2 8 6 Detach 4 | . 3 . 1 . Swap 22 | . . 5 11 6 Drop 52 | . 2 10 26 14 Fire 115 | . 5 21 62 27 Melee 38 | . . . 14 24 Ram . | . . . . . Kick . | . . . . . Crush 2 | . . . . 2 Escape Stasis . | . . . . . Rewire . | . . . . . Trap . | . . . . . Miscellaneous . | . . . . . Route ------- -11/Scrapyard -10/Materials -9/Materials (discovered 2 exits: [*Mat] / [*Sto]) -8/Materials -7/Factory History --------- Turn | Location | Event 13 | -11/Scrapyard | Discovered new exit (range 14) 111 | -11/Scrapyard | Entered Materials 314 | -10/Materials | Build established: Mutant 333 | -10/Materials | Discovered new exit (range 14) 370 | -10/Materials | Entered another Materials area 370 | -9/Materials | Evolved 2 slots: Propulsion x2 604 | -9/Materials | Discovered new exit (range 5) 667 | -9/Materials | Discovered new exit (range 6) 674 | -9/Materials | Entered another Materials area 674 | -8/Materials | Evolved 2 slots: Propulsion x2 1082 | -8/Materials | Core integrity fell below 50% 1130 | -8/Materials | Lost 5 parts (4n1u) 1387 | -8/Materials | Discovered new exit (range 4) 1437 | -8/Materials | Build established: Scavenger-Mutant 1575 | -8/Materials | Entered Factory 1575 | -7/Factory | Evolved 2 slots: Weapon x2 1869 | -7/Factory | Build established: Scavenger-Tank 1889 | -7/Factory | Garrison activated, responded to threat 1999 | -7/Factory | Core integrity fell below 50% 2005 | -7/Factory | Lost 14 parts (2p6n1u5w) 2021 | -7/Factory | Garrison activated, responded to threat 2090 | -7/Factory | Core integrity fell below 20% 2238 | -7/Factory | System corruption reached 10% 2260 | -7/Factory | Lost 3 parts (2n1w) 2268 | -7/Factory | Destroyed by Y-54 Guardian with Flak Gun Last Messages --------------- 02237_ Acquired Corrupted Autogun. 02237_ Integrated Corrupted Autogun (+9). 02241_ K-01 Serf collects debris. 02241_ Acquired 10 matter. 02242_ R-06 Scavenger collects VTOL Module. 02245_ K-01 Serf collects debris. 02246_ System corrupted: Remote Datajack rejected. 02246_ Acquired Remote Datajack. 02248_ Jacked Y-54 Guardian... >>parse_system Reading system data... 02249_ Acquired 8 matter. 02251_ Slammed into Y-54 Guardian. 02255_ Acquired 1 matter. 02257_ Acquired 4 matter. 02261_ System corrupted: Heat flow error (+260). 02262_ Lgt. Treads destroyed. 02263_ Acquired 4 matter. 02268_ System corrupted: Autogun jammed. 02268_ Gatling Laser destroyed. Map ----- +----------------------------------------------------+ | ?????????????????????????????????????????????????? | | ?????????????????????????????????????????????????? | | ?????????????????????????????????????????????????? | | ?????????????????????????????????????????????????? | | ?????????????????????????????????????????????????? | | ?????????????????????????????????????????????????? | | ????????????????????????#########????????????????? | | ????????????????????????# #????????????????? | | ????????????????????????# """ #????????????????? | | ????????????????????????# """ #????????????????? | | ????????????????????????# """ #????????????????? | | ????????????????????????# #???????? ???????? | | ????????????????????????# """ #???????? ???????? | | ????????????????????????# """ #???????? ???????? | | ????????????????????????# """ #?? ????? ???????? | | ????????????????????????# #?? ????? ???????? | | ????????????????????????# """ #?? ????? ???????? | | ????????????????????????#! """ #?# #???? ???????? | | ????????????????????????# """ #?# #???# #???#### | | ????????????????+???????# #?# #???# #???# | | ????????????????# ?????# """ #?# #???# #???# "" | | ????????????????# ????# """ #?# #???# #???# "Y | | ???????????????## ???# """=%#?# #???# #???# | | ???????????????# ??# %% ### ###?# #???# | | ???????????????# m#######+## #?# #???# | | ???????????????# Y @ %%% " ### ######## | | ??????????? + T % = "T | | ????????????? # ############ | | ???????????????# ########## ############ | | ???????????????# ##???????###+### | | ???????????????### #???????????? ? """ """ | | ???????????????### a????????????? #???"" """ " | | ?????????????????# ????????????? ?????" """ " | | ?????????????????# ?????????????? ???? " | | ?????????????????#??????????????" "" #?? | | ???????????????????????????????? Y" #??######### | | ??????????????????????????????? "" #??????## ## | | ??????????????????????????????? #??????# ! | | ??????????????????????????????#####??##??????#"" ! | | ?????????????????????????????????????????????#"Y ! | | ?????????????????????????????????????????????#"" | | ?????????????????????????????????????????????# ! | | ?????????????????????????????????????????????# | | ???????????????????H?????????????????????????# ! | | ?????????????????????????????????????????????# | | ?????????????????????????????????????????????# ! | | ?????????????????????????????????????????????##"#+ | | ??????????????????????????????????????????????###% | | ??????????????????????????????????????????????###+ | | ??????????????????????????????????????????????# *[ | +----------------------------------------------------+ Best States ------------- Heat Dissipation 58 Energy Generation 15 Energy Capacity 160 Matter Stores 300 Matter Capacity 300 Sight Range 16 Terrain Scan Density 10 Armor Coverage 150 Utility Shielding 66 Evasion (%) 55 Recoil Reduction 2 Item Schematics ----------------- None Robot Schematics ------------------ None Fabricated ------------ Nothing Alien Tech Used ----------------- None Achievements -------------- None Challenges ------------ None Game ------ Seed SigixElectronSpear Manual? 0 Play Time 00:22:11 Cumulative 130.6 hours Start 2024.04.26 @ 20:13:36 End 2024.04.26 @ 20:32:37 Sessions 1 Manual Loads 0 Difficulty Rogue Special Mode None Game No. 267 Rogue 267 Adventurer 0 Explorer 0 Win Type - Total 0 Types 0/0/0/0/0/0/0/0/0 Lore% 35 Gallery% 54 Achievement% 37 Wizard Run 0 Options --------- Layout 0 ASCII 0 Keyboard 1 Movement Numpad Keybinds 0 Fullscreen 2 Font 18/X11 Map View 76x50 Zoom Use 0% Tactical HUD 1 Map Filters NONE Filters NONE Steam 1 RUN: f6480468-6486-4702-9b49-7a80b27bcda8